Cogmind - Beta 13 @@@ ROGUE MODE // 2024.05.03 @ 06:29:09 Player: BionicBot Result: Destroyed by 36-YV9(R) with Subdweller Laser Performance ------------- Evolutions (0) 0 Regions Visited (2) 400 Robots Destroyed (31) 155 Value Destroyed (633) 633 Prototype IDs (0) 0 Alien Tech Used (0) 0 Bonus (0) 0 TOTAL SCORE: 1188 Bonus ------- None Cogmind --------- Core Integrity 0/250 Matter 104/300 Energy 200/200 System Corruption 0% Temperature Cool (6) Movement Core (350) Ox6 Location -10/Subcaves Parts ------- > --- POWER (1) -------- Subdweller Power Source > --- PROPULSION (2) --- (None) > --- UTILITY (2) ------ Medium Storage Unit Signal Interpreter > --- WEAPON (2) ------- Subdweller Machine Gun > --- INVENTORY (10) --- Visual Processing Unit Subdweller Optics Signal Interpreter Improved Terrain Scanner Targeting Computer Small Laser Small Laser Peak State ------------ > --- POWER ------------ Improved Ion Engine > --- PROPULSION ------- Aluminum Leg Aluminum Leg > --- UTILITY ---------- Medium Storage Unit Light Armor Plating > --- WEAPON ----------- Battle Cannon Slug Cannon > --- INVENTORY -------- Aluminum Leg Aluminum Leg Visual Processing Unit Subdweller Optics Signal Interpreter Signal Interpreter Improved Terrain Scanner Targeting Computer Small Laser Small Laser [Rating: 13] Favorites ----------- Power Ion Engine Engine Ion Engine Propulsion Aluminum Leg Leg Aluminum Leg Utility Medium Storage Unit Device Improved Terrain Scanner Storage Medium Storage Unit Processor Signal Interpreter Protection Light Armor Plating Weapon Medium Laser Energy Gun Medium Laser Ballistic Gun Assault Rifle Ballistic Cannon Slug Cannon Build | -11 -10 -10 ------- Run | Yrd Mat Sub Slots Evolved . | . . . Power . | . . . Propulsion . | . . . Utility . | . . . Weapon . | . . . Parts Attached 26 | 7 8 11 Power 3 | 1 . 2 Engine 3 | 1 . 2 Core . | . . . Reactor . | . . . Propulsion 6 | 2 2 2 Treads . | . . . Leg 6 | 2 2 2 Wheel . | . . . Hover . | . . . Flight . | . . . Utility 6 | 2 2 2 Device 1 | 1 . . Storage 2 | 1 1 . Processor 2 | . 1 1 Hackware . | . . . Protection 1 | . . 1 Artifact . | . . . Weapon 11 | 2 4 5 Energy Gun 7 | 1 4 2 Energy Cannon . | . . . Ballistic Gun 2 | 1 . 1 Ballistic Cannon 2 | . . 2 Launcher . | . . . Special Weapon . | . . . Impact Weapon . | . . . Slashing Weapon . | . . . Piercing Weapon . | . . . Special Melee Weapon . | . . . Unidentified Prototypes . | . . . Parts Lost 10 | . 1 9 Power 1 | . . 1 Propulsion 4 | . . 4 Utility 1 | . . 1 Weapon 4 | . 1 3 Highest Loss Streak 3 | . 1 3 To Critical Strikes 1 | . . 1 Average Slot Usage (%) 94 | . 99 89 Engine 12 | . 14 10 Leg 26 | . 28 24 Device 1 | . 3 . Storage 14 | . 14 14 Processor 8 | . 10 6 Protection 2 | . . 4 Energy Gun 13 | . 17 9 Ballistic Gun 6 | . 10 3 Ballistic Cannon 7 | . . 15 Naked Turns . | . . . Heaviest Build 30 | 14 20 30 Greatest Support 20 | 20 20 20 Greatest Overweight (x) 8 | . . 8 Average Overweight (x) . | . . . Largest Inventory Capacity 10 | 8 10 10 Average Capacity 9 | 5 9 10 Most Carried 10 | . 10 10 Average Carried 7 | . 6 9 Final Capacity 10 | 8 10 10 Final Carried 10 | . 10 7 Class Distribution -------------------- 100% | Mutant Dominant Class ---------------- Mutant | -10/Materials Mutant | -10/Subcaves Resources | -11 -10 -10 ----------- Run | Yrd Mat Sub Matter Collected 650 | 200 261 189 Remotely . | . . . Salvage Created 788 | 19 475 294 Parts 59 | 3 39 17 Haulers Intercepted 1 | . 1 . Recyclers Shooed . | . . . Parts Field Recycled . | . . . Retrieved Matter . | . . . Parts Self-Destructed 8 | . . 8 Prevented . | . . . Kills | -11 -10 -10 ------- Run | Yrd Mat Sub Combat Hostiles Destroyed 21 | . 10 11 Guns 15 | . 10 5 Cannons 6 | . . 6 Classes Destroyed 10 | 1 6 3 Worker 2 | . 2 . Tunneler 1 | 1 . . Hauler 1 | . 1 . Operator 1 | . 1 . Turret 2 | . . 2 Watcher 3 | . 3 . Swarmer 11 | . 5 6 Grunt 5 | . 5 . Sentry 1 | . . 1 Subdweller 4 | . . 4 Best Kill Streak 4 | 1 3 4 Combat Bots Only 4 | . 3 4 Max Kills in Single Turn 1 | 1 1 1 Gunslinging . | . . . Exploded . | . . . Melee . | . . . Uniques/NPCs Destroyed . | . . . Combat | -11 -10 -10 -------- Run | Yrd Mat Sub Hostile Shots Fired 199 | . 48 151 Missed 61 | . 16 45 Damage Taken 1598 | . 358 1240 Core 265 | . 23 242 Absorbed by Shields . | . . . Core Remaining (%) 100 | 100 . . Volleys Fired 105 | 2 45 58 Largest 2 | 2 2 2 Hottest 100 | 60 100 100 Shots Fired 206 | 4 88 114 Gun 159 | 4 88 67 Cannon 47 | . . 47 Launcher . | . . . Special . | . . . Kinetic 111 | 2 41 68 Thermal 95 | 2 47 46 Explosive . | . . . Electromagnetic . | . . . Robot Hit Streak 11 | 1 10 11 Robot Miss Streak 7 | 1 7 7 Penetration Max . | . . . Secondary Targets 1 | . 1 . Max Gunslinging Chain 1 | . 1 . Shots Hit Robots 113 | 2 48 63 Core Hits 47 | 1 26 20 Critical Kills 1 | . . 1 Critical Parts Destroyed . | . . . Critical Strikes 4 | . . 4 Burn 2 | . . 2 Destroy 2 | . . 2 Melee Attacks . | . . . Impact . | . . . Slashing . | . . . Piercing . | . . . Sneak Attacks . | . . . Combat Hostiles . | . . . Follow-up Attacks . | . . . Damage Inflicted 1803 | 22 608 1173 Guns 1265 | 22 591 652 Cannons 521 | . . 521 Explosions . | . . . Melee . | . . . Ramming 17 | . 17 . Kinetic 1097 | 22 261 814 Thermal 689 | . 330 359 Explosive . | . . . Electromagnetic . | . . . Impact . | . . . Slashing . | . . . Piercing . | . . . Highest Corruption . | . . . Average Corruption . | . . . Corruption Purged . | . . . Corruption Blocked . | . . . Overload Shots . | . . . Overflow Damage 28 | . . 28 Projectiles 28 | . . 28 Explosions . | . . . Melee . | . . . Knockbacks 7 | . . 7 Impact . | . . . Kinetic 7 | . . 7 Secondary . | . . . Self-Inflicted Damage . | . . . Shots . | . . . Rammed . | . . . Targets Rammed 6 | . 6 . Kicked 6 | . 6 . Crushed . | . . . Highest Temperature 117 | . 117 18 Average Temperature 30 | . 31 10 Received Heat Transfer 396 | . 135 261 Siege Activations . | . . . Robots Corrupted . | . . . Combat Hostiles . | . . . Parts Fried . | . . . Impact Corruptions . | . . . Robots Melted . | . . . Combat Hostiles . | . . . Parts Melted 1 | . 1 . Heat Transferred 2101 | . 880 1221 Parts Sabotaged . | . . . Parts Stolen . | . . . Parts Stripped . | . . . Power Chain Reactions . | . . . Alert | -11 -10 -10 ------- Run | Yrd Mat Sub Peak Influence 283 | 5 283 . Initial 3 | . 3 . Average 89 | 2 97 . Maximum Alert Level 1 | . 1 . Low Security (%) 93 | 100 92 . Level 1 6 | . 7 . Level 2 . | . . . Level 3 . | . . . Level 4 . | . . . Level 5 . | . . . High Security . | . . . Max Security . | . . . Squads Dispatched 2 | . 2 . Investigation . | . . . Extermination . | . . . Reinforcement 2 | . 2 . Assault . | . . . Garrison . | . . . Intercept . | . . . Searches Triggered . | . . . Construction Impeded . | . . . Haulers Reinforced . | . . . Active Scanning Responses . | . . . Cargo Convoy Interrupts . | . . . Stealth | -11 -10 -10 --------- Run | Yrd Mat Sub Distress Signals 1 | . 1 . Communications Jammed . | . . . Distress Signals . | . . . Times Spotted 58 | . 22 36 Peak Tracking Total 6 | . 3 6 Tactical Retreats 6 | . 1 5 Traps | -11 -10 -10 ------- Run | Yrd Mat Sub Traps Triggered 1 | . 1 . Indirectly . | . . . Trap Hack Attempts . | . . . Triggered . | . . . Disarmed . | . . . Reprogrammed . | . . . Reused . | . . . Traps Extracted . | . . . Installed . | . . . Triggered . | . . . Machines | -11 -10 -10 ---------- Run | Yrd Mat Sub Machines Disabled 2 | . . 2 Max in Single Turn 1 | . . 1 Machines Repaired . | . . . Machines Dismantled . | . . . Machines Sabotaged . | . . . Overloaded Fab Kills . | . . . Hacking | -11 -10 -10 --------- Run | Yrd Mat Sub Machines Accessed 4 | . 4 . Terminals 4 | . 4 . Fabricators . | . . . Repair Stations . | . . . Recycling Units . | . . . Scanalyzers . | . . . Garrison Access . | . . . Total Hacks 9 | . 9 . Successful 5 | . 5 . Failed 4 | . 4 . Catastrophic . | . . . Database Lockouts . | . . . Manual . | . . . Terminals 9 | . 9 . Fabricators . | . . . Repair Stations . | . . . Recycling Units . | . . . Scanalyzers . | . . . Garrison Access . | . . . Terminal Hacks 5 | . 5 . Branch Access Points 1 | . 1 . Emergency Access Points 1 | . 1 . Locate Traps 1 | . 1 . Zone Layout 2 | . 2 . Fabricator Hacks . | . . . Repair Station Hacks . | . . . Recycling Unit Hacks . | . . . Scanalyzer . | . . . Garrison Access Hacks . | . . . Unauthorized Hacks . | . . . Terminals . | . . . Fabricators . | . . . Repair Stations . | . . . Recycling Units . | . . . Scanalyzers . | . . . Garrison Access . | . . . Data Cores Recovered . | . . . Used . | . . . Hacking Detections 3 | . 3 . Full Trace Events . | . . . Feedback Events . | . . . Feedback Blocked . | . . . Robot Schematics Acquired . | . . . Robots Built . | . . . Authchips . | . . . Time . | . . . Total Robot Build Rating . | . . . Part Schematics Acquired . | . . . Parts Built . | . . . Authchips . | . . . Time . | . . . Total Part Build Rating . | . . . Parts Repaired . | . . . Time . | . . . Parts Recycled . | . . . Recycled Matter . | . . . Retrieved Matter . | . . . Retrieved Components . | . . . Parts Scanalyzed . | . . . Part Schematics Acquired . | . . . Parts Damaged . | . . . Bothacking | -11 -10 -10 ------------ Run | Yrd Mat Sub Used RIF Installer . | . . . Robots Hacked . | . . . Non-combat . | . . . Combat . | . . . Robot Hacks Applied . | . . . Relay Couplers Released . | . . . Fabnet Peak Effective % . | . . . Robots Rewired . | . . . Allies Hacked . | . . . Hacks Repelled . | . . . Allies | -11 -10 -10 -------- Run | Yrd Mat Sub Total Allies . | . . . Largest Group . | . . . Highest-Rated Group . | . . . Highest-Rated Ally . | . . . Total Orders . | . . . Ally Attacks . | . . . Total Damage . | . . . Kills . | . . . Allies Corrupted . | . . . Allies Melted . | . . . Intel | -11 -10 -10 ------- Run | Yrd Mat Sub Robot Analysis Total . | . . . Derelict Logs Recovered 2 | . . 2 Drone Launches . | . . . Drone Recoveries . | . . . Exploration | -11 -10 -10 ------------- Run | Yrd Mat Sub Turns Passed 2723 | 112 1284 1327 Spaces Moved 1487 | 79 787 621 Core 5 | 4 . 1 Treads . | . . . Legs 1482 | 75 787 620 Wheels . | . . . Hover . | . . . Flight . | . . . Fastest Speed 50 | 50 120 120 Average Speed 143 | 116 120 177 Slowest Speed 450 | 120 120 450 Overloaded Moves . | . . . Propulsion Burnouts . | . . . Robots Hopped . | . . . Cave-ins Triggered . | . . . Exploration Rate (%) 46 | 5 96 37 Regions Visited 2 Branch Regions 1 Pre-discovered Areas . | . . . Known Exits Taken 1 | . 1 . Unknown Exits Taken 1 | 1 . . Scrap Searched . | . . . Spaces Dug . | . . . Terrain Destroyed 11 | . . 11 Melee . | . . . Projectile 11 | . . 11 AOE . | . . . Terrain Rammed . | . . . Walls Destroyed . | . . . Machines Disabled . | . . . Actions | -11 -10 -10 --------- Run | Yrd Mat Sub Total 1859 | 91 1035 733 Wait 223 | 4 181 38 Move 1485 | 78 786 621 Hop . | . . . Pick Up 9 | . 7 2 Fast Attach 10 | 7 . 3 Attach 6 | . 1 5 Detach 1 | . . 1 Swap 10 | . 7 3 Drop 4 | . 2 2 Fire 105 | 2 45 58 Melee . | . . . Ram . | . . . Kick 6 | . 6 . Crush . | . . . Escape Stasis . | . . . Rewire . | . . . Trap . | . . . Miscellaneous . | . . . Route ------- -11/Scrapyard -10/Materials (discovered 5 exits: *Mat x3 / *Min / *Sub) -10/Subcaves (discovered 2 exits: *Mat / *Rec) History --------- Turn | Location | Event 9 | -11/Scrapyard | Discovered new exit (range 15) 113 | -11/Scrapyard | Entered Materials 136 | -10/Materials | Identified exit to Mines 304 | -10/Materials | Build established: Mutant 466 | -10/Materials | Discovered new exit (range 17) 634 | -10/Materials | Discovered new exit (range 8) 641 | -10/Materials | Identified exit to Materials 769 | -10/Materials | Discovered exit to Materials (range 12) 1378 | -10/Materials | Discovered new exit (range 6) 1396 | -10/Materials | Identified exit to Subcaves 1397 | -10/Materials | Entered Subcaves 1506 | -10/Subcaves | Learned 8 Materials zone layouts 1745 | -10/Subcaves | Core integrity fell below 50% 1766 | -10/Subcaves | Shifting Twisted Machinery released Slug Cannon 2088 | -10/Subcaves | A swath of the cavern ceiling suddenly collapsed 2188 | -10/Subcaves | Discovered new exit (range 15) 2223 | -10/Subcaves | Identified exit to Materials 2387 | -10/Subcaves | Discovered new exit (range 14) 2439 | -10/Subcaves | Core integrity fell below 20% 2467 | -10/Subcaves | Lost 3 parts (2n1w) 2510 | -10/Subcaves | Identified exit to Recycling 2724 | -10/Subcaves | Destroyed by 36-YV9(R) with Subdweller Laser Last Messages --------------- 02438_ Autobeam Turret knocked back. 02456_ Destroyed Autobeam. 02459_ Autobeam Turret destroyed. 02464_ Slug penetrates Autobeam Turret. 02470_ Destroyed Autobeam. 02473_ Autobeam Turret destroyed. 02505_ Acquired 5 matter. 02508_ Acquired 6 matter. 02510_ EXIT=IDENTIFIED: RECYCLING 02515_ Acquired 1 matter. 02528_ Acquired 9 matter. 02554_ Acquired 5 matter. 02562_ Acquired 13 matter. 02711_ 36-YV9(R) suffers critical hit (Destroy). 02711_ 36-YV9(R) knocked back. 02714_ Aluminum Leg destroyed. 02714_ 36-YV9(R) knocked back. 02717_ Slug penetrates 36-YV9(R). 02717_ 36-YV9(R) knocked back. 02718_ Slug Cannon destroyed. Map ----- +----------------------------------------------------+ | ??????????????????????????????????????????#### | | ??????????????????????????????????????????# ## | | ??????????????????????????????????????????# | | ??????????????????????????????????????????# | | ??????????????????????????????????????????# | | ??????????????????????????????????????????# # | | ??????????????????????????????????????????# ##### | | ??????????????????????????????????????????######## | | ???????????????????????????????????????????#""" " | | ???????????????????????????????????????????#" | | ???????????????????????????????????????????#" | | ??????????????????????????????????????????##" | | ??????????????????????????????????????????#> | | ??????????????????????????????????????????## | | ???????????????????????????????????????????# | | ???????????????????????????????????????????# | | ???????????????????????????????????????????#"" " | | ???????????????????????????????????????????####### | | ?????????????????????????????#???????????????????? | | ????????????????????????#### #?????????????######? | | ????????????????????????# ?????????????? ## | | ????????????????????????# ???????????????? # | | ????????????????????????# " ??????????????????# | | ?????????????????????????" ##????????????????## | | ??????????????????????####%"#???????????????## | | ???????????????????## # @"##?????????####### | | ???????????????????# " #?????????# | | ???????????????????# """" ########??# | | ????????????????? % #""#% # ## # #### ## | | ????????????????##??###""R"""" # # ## ##### | | ?????????????????????# """"""## ### #???#### | | ????????????????????#" """######?## #### #??????? | | ????????????????????#" ####??????# ##??###??????? | | ????????????????????##""????????? #?????????????? | | ?????????????????????? ????????? #??????????????? | | ???????????????????????????????" ???????????????? | | ??????????????????????????????" "????????????????? | | ?????????????????????????????" "?????????????????? | | ????????????????????????????" ??????????????????? | | ??????????????????????????? "???????????????????? | | ??????????????????????????? ????????????????????? | | ?????????????????????????? ??????????????????????? | | ?????????????????????????????????????????????????? | | ?????????????????????????????????????????????????? | | ?????????????????????????????????????????????????? | | ?????????????????????????????????????????????????? | | ?????????????????????????????????????????????????? | | ?????????????????????????????????????????????????? | | ?????????????????????????????????????????????????? | | ?????????????????????????????????????????????????? | +----------------------------------------------------+ Best States ------------- Heat Dissipation 25 Energy Generation 15 Energy Capacity 265 Matter Stores 300 Matter Capacity 300 Sight Range 16 Terrain Scan Range 16 Terrain Scan Density 10 Armor Coverage 150 Evasion (%) 55 Item Schematics ----------------- None Robot Schematics ------------------ None Fabricated ------------ Nothing Alien Tech Used ----------------- None Achievements -------------- None Challenges ------------ None Game ------ Seed HardcellSpikedImmobilizer Manual? 0 Play Time 00:24:47 Cumulative 27.0 hours Start 2024.05.03 @ 05:56:01 End 2024.05.03 @ 06:29:09 Sessions 1 Manual Loads 0 Difficulty Rogue Special Mode None Game No. 30 Rogue 30 Adventurer 0 Explorer 0 Win Type - Total 0 Types 0/0/0/0/0/0/0/0/0 Lore% 6 Gallery% 24 Achievement% 19 Wizard Run 0 Options --------- Layout 0 ASCII 0 Keyboard 1 Movement Numpad Keybinds 0 Fullscreen 2 Font 18/SmallcapsGlow Map View 76x50 Zoom Use 0% Tactical HUD 1 Map Filters NONE Filters NONE Steam 1 RUN: 1fb3961b-e39c-471c-8a1d-064ab47f0e35